bitfinex/quotes_SOLUSD_20240714
["timestamp","ask_amount","ask_price","bid_price","bid_amount"]
[1720999337063,6.7327,148.53,148.43,6.0466]
[1720999337474,16.8298,148.55,148.43,6.0466]
[1720999337678,45.0,148.52,148.43,6.0466]
[1720999337992,51.7331,148.52,148.43,7.39393782]
[1720999338171,45.0,148.51,148.43,7.39393782]
[1720999338489,51.7337,148.51,148.43,6.0466]
[1720999338987,45.0,148.51,148.43,6.0466]
[1720999339187,6.7345,148.49,148.43,6.0466]
[1720999339364,45.0,148.51,148.43,6.0466]
[1720999339962,51.7336,148.51,148.43,7.39387089]
[1720999340386,6.734,148.5,148.43,7.39387089]
[1720999341170,6.7348,148.49,148.43,6.0466]
[1720999342478,45.0,148.51,148.43,6.0466]
[1720999342685,6.734,148.5,148.43,7.39387693]
[1720999343784,6.7345,148.49,148.43,6.0466]
[1720999344271,6.735,148.48,148.43,6.0466]
[1720999344969,6.7345,148.49,148.43,6.0466]
[1720999345365,6.7355,148.47,148.43,6.0466]
[1720999345687,63.6662,148.51,148.42,15.4817]
[1720999345688,6.7359,148.46,148.42,15.4817]
[1720999345993,6.7354,148.47,148.42,15.4817]
[1720999346175,6.7349,148.48,148.42,15.4817]
[1720999346372,6.7354,148.47,148.42,15.4817]
[1720999346887,6.7349,148.48,148.42,15.4817]
[1720999347085,45.0,148.47,148.42,15.4817]
[1720999347679,6.7345,148.49,148.42,15.4817]
[1720999347887,6.734,148.5,148.42,15.4817]
[1720999348193,6.734,148.5,148.43,1.34729366]
[1720999348376,6.734,148.5,148.44,6.4643]
[1720999349873,6.7345,148.49,148.44,6.4643]
[1720999350080,6.735,148.48,148.44,6.4643]
[1720999350889,6.7353,148.47,148.44,6.4643]
[1720999351274,6.7349,148.48,148.44,6.4643]
[1720999353097,6.7354,148.47,148.44,6.4643]
[1720999355494,6.7354,148.47,148.42,15.4817]
[1720999356308,22.0158,148.46,148.42,15.4817]
[1720999356477,15.28,148.45,148.42,15.4817]
[1720999356676,15.28,148.46,148.42,15.4817]
[1720999358278,6.7354,148.47,148.42,15.4817]
[1720999358473,30.56,148.51,148.42,15.4817]
[1720999358702,6.7349,148.48,148.42,15.4817]
[1720999359401,6.7345,148.49,148.42,15.4817]
[1720999359574,45.0,148.48,148.42,15.4817]
[1720999360394,51.735,148.48,148.42,15.4817]
[1720999364090,45.0,148.48,148.42,15.4817]
[1720999364384,51.7344,148.49,148.42,15.4817]
[1720999364804,6.7349,148.48,148.42,15.4817]
[1720999366791,6.7358,148.47,148.42,15.4817]
[1720999367029,45.0,148.46,148.42,15.4817]
[1720999367504,6.7358,148.47,148.42,15.4817]
[1720999367900,16.8334,148.52,148.4,6.5297]
[1720999367901,51.7358,148.46,148.4,6.5297]
[1720999368488,45.0,148.46,148.4,6.5297]
[1720999368889,16.8334,148.52,148.4,6.5297]
[1720999369102,48.15822795,148.51,148.4,6.5297]
[1720999369302,45.0,148.51,148.4,6.5297]
[1720999369598,45.0,148.51,148.4,7.87718193]
[1720999369791,6.7349,148.48,148.4,7.87718193]
[1720999370102,2.7590715,148.54,148.41,15.4256]
[1720999370307,6.734,148.5,148.41,15.4256]
[1720999370686,42.41733146,148.55,148.42,1.34738495]
[1720999370894,6.7336,148.51,148.43,1.34727534]
[1720999371391,6.7336,148.51,148.42,6.2898]
[1720999371611,6.7345,148.49,148.42,6.2898]
[1720999372106,6.7345,148.49,148.42,7.63719524]
[1720999372297,6.7336,148.51,148.43,1.34734419]
[1720999372504,45.0,148.5,148.43,1.34734419]
[1720999373009,45.0,148.5,148.42,6.2898]
[1720999373010,51.734,148.5,148.42,6.2898]
[1720999373213,51.734,148.5,148.42,7.63708094]
[1720999373406,51.734,148.5,148.43,1.3472716]
[1720999373706,51.734,148.5,148.42,6.2898]
[1720999374090,6.7344,148.49,148.42,6.2898]
[1720999374492,51.7341,148.5,148.43,1.34735353]
[1720999374714,49.78023146,148.55,148.45,6.1097]
[1720999374916,6.7329,148.53,148.45,6.1097]
[1720999375112,6.7336,148.51,148.45,6.1097]
[1720999375701,6.7332,148.52,148.45,6.1097]
[1720999375900,6.7327,148.53,148.45,6.1097]
[1720999376211,51.7331,148.52,148.45,6.1097]
[1720999377409,14.85654886,148.56,148.47,6.3133]
[1720999377614,30.56,148.6,148.47,6.3133]
[1720999377824,3.15521761,148.59,148.47,7.66010339]
[1720999378009,6.7312,148.57,148.47,7.66010339]
[1720999378202,6.7314,148.56,148.47,7.66010339]
[1720999378716,19.50646526,148.6,148.47,6.3133]
[1720999378914,3.15514257,148.59,148.47,6.3133]
[1720999379120,6.7308,148.57,148.47,6.3133]
[1720999379319,6.7305,148.58,148.48,1.34673385]
[1720999379528,6.7305,148.58,148.5,6.3133]
[1720999380217,15.26,148.57,148.52,15.26]
[1720999380817,6.7305,148.58,148.5,6.3133]
[1720999380999,15.26,148.56,148.51,15.26]
[1720999381202,6.7309,148.57,148.52,15.26]
[1720999381414,15.26,148.57,148.52,15.26]
[1720999382216,15.26,148.56,148.52,15.26]
[1720999382403,15.26,148.55,148.5,21.5733]
[1720999382607,15.26,148.52,148.46,6.5065]
[1720999382819,15.26,148.52,148.47,15.26]
[1720999383320,6.7318,148.55,148.48,15.26]
[1720999383628,15.26,148.53,148.48,15.26]
[1720999383830,15.26,148.53,148.46,6.5065]
[1720999383831,15.26,148.52,148.47,15.26]
[1720999384300,21.9931,148.52,148.47,15.26]
[1720999384824,16.8278,148.57,148.46,6.5065]
[1720999384825,21.9936,148.51,148.46,21.7665]
[1720999385123,15.26,148.51,148.46,21.7665]
[1720999389223,15.26,148.5,148.46,21.7665]
[1720999390129,15.26,148.5,148.46,6.5065]
[1720999390320,15.26,148.49,148.45,15.1913]
[1720999391235,15.26,148.49,148.44,15.26]
[1720999391419,15.26,148.47,148.43,15.26]
[1720999392212,15.26,148.47,148.42,21.3463]
[1720999393128,15.26,148.48,148.43,15.26]
[1720999394837,21.9949,148.48,148.43,15.26]
[1720999395144,6.7345,148.49,148.43,15.26]
[1720999395343,15.26,148.48,148.43,15.26]
[1720999396011,6.7343,148.5,148.43,15.26]
[1720999396211,15.26,148.48,148.43,15.26]
[1720999396807,45.0,148.49,148.44,15.26]
[1720999396808,15.26,148.49,148.44,15.26]
[1720999397024,15.26,148.5,148.45,15.26]
[1720999397219,6.7331,148.52,148.46,15.26]
[1720999397530,2.69961378,148.57,148.49,15.26]
[1720999397745,15.26,148.54,148.49,15.26]
[1720999398044,15.26,148.54,148.46,1.3467734]
[1720999398045,6.7326,148.53,148.46,1.3467734]
[1720999398235,21.9926,148.53,148.48,15.26]
[1720999398746,17.79127543,148.58,148.52,21.7947]
[1720999398944,61.04,148.61,148.53,15.26]
[1720999399140,9.88458171,148.6,148.54,15.26]
[1720999399307,6.7299,148.6,148.54,15.26]
[1720999399632,15.26,148.59,148.54,15.26]
[1720999400021,6.7299,148.6,148.53,15.1541]
[1720999400220,15.26,148.59,148.54,15.26]
[1720999400924,21.99,148.59,148.54,15.26]
[1720999401426,6.73,148.59,148.53,30.4141]
[1720999401634,21.9905,148.58,148.53,30.4141]
[1720999402127,15.26,148.56,148.52,6.5347]
[1720999402515,15.26,148.57,148.52,21.7947]
[1720999403632,21.9908,148.57,148.52,21.7947]
[1720999404233,6.7314,148.56,148.52,21.7947]
[1720999404434,21.9919,148.55,148.5,15.26]
[1720999404643,6.7311,148.57,148.51,15.26]
[1720999404956,60.26,148.56,148.49,16.4433]
[1720999405113,15.26,148.55,148.5,15.26]
[1720999405520,60.26,148.56,148.51,15.26]
[1720999407014,16.8216,148.62,148.53,15.26]
[1720999407220,15.26,148.58,148.53,15.26]
[1720999407639,15.26,148.57,148.52,15.26]
[1720999409835,6.7318,148.55,148.49,16.4433]
[1720999410029,15.26,148.54,148.49,31.7033]
[1720999410811,15.26,148.55,148.5,15.26]
[1720999411549,15.26,148.54,148.49,31.7033]
[1720999411845,15.26,148.52,148.48,6.1055]
[1720999412332,15.26,148.53,148.48,21.3655]
[1720999412850,6.7317,148.55,148.48,21.3655]
[1720999413020,15.26,148.53,148.48,21.3655]
[1720999414026,17.96444458,148.61,148.52,15.26]
[1720999414242,9.13485014,148.64,148.56,15.26]
[1720999414550,15.26,148.61,148.56,15.26]
[1720999414953,15.26,148.6,148.55,15.26]
[1720999415326,15.26,148.62,148.56,6.1564]
[1720999415553,15.26,148.62,148.57,15.26]
[1720999415753,15.26,148.61,148.57,15.26]
[1720999416338,6.7284,148.63,148.56,6.1564]
[1720999417169,2.40715014,148.64,148.56,6.1564]
[1720999417338,47.40715014,148.64,148.56,7.50250255]
[1720999417542,54.13485014,148.64,148.56,7.50250255]
[1720999417748,6.7281,148.63,148.56,7.50250255]
[1720999417960,54.13485014,148.64,148.56,7.50250255]
[1720999418658,6.7282,148.63,148.56,6.1564]
[1720999419267,6.7282,148.63,148.56,7.50250368]
[1720999420375,47.40715014,148.64,148.56,7.50250368]
[1720999420870,2.40715014,148.64,148.56,7.50250368]
[1720999421543,9.13485014,148.64,148.56,6.1564]
[1720999422148,6.7282,148.63,148.56,6.1564]
[1720999422967,9.13485014,148.64,148.56,6.1564]
[1720999423265,45.0,148.63,148.56,7.50250317]
[1720999423971,45.0,148.63,148.56,6.1564]
[1720999424545,15.7597,148.62,148.52,6.0377]
[1720999424844,45.0,148.61,148.52,6.0377]
[1720999426669,6.73,148.59,148.52,6.0377]
[1720999426868,45.0,148.58,148.52,6.0377]
[1720999427364,6.7296,148.6,148.52,7.38421204]
[1720999427550,6.7291,148.61,148.52,7.38421204]
[1720999427754,45.0,148.6,148.52,7.38421204]
[1720999428075,45.0,148.6,148.52,6.0377]
[1720999428279,6.73,148.59,148.52,6.0377]
[1720999428466,45.0,148.58,148.52,6.0377]
[1720999428852,22.4886,148.62,148.52,7.38419753]
[1720999429179,45.0,148.61,148.52,6.0377]
[1720999430053,6.7295,148.6,148.52,6.0377]
[1720999430255,45.0,148.59,148.52,6.0377]
[1720999430557,6.7296,148.6,148.52,6.0377]
[1720999430760,45.0,148.59,148.52,6.0377]
[1720999431454,51.7303,148.59,148.52,6.0377]
[1720999431957,45.0,148.59,148.52,6.0377]
[1720999432146,45.0,148.59,148.52,7.38419589]
[1720999432347,45.0,148.6,148.52,7.38419589]
[1720999432651,51.7296,148.6,148.52,6.0377]
[1720999433765,51.7296,148.6,148.52,7.38419385]
[1720999433975,45.0,148.6,148.52,7.38418512]
[1720999434370,45.0,148.61,148.52,7.38418512]
[1720999434570,45.0,148.61,148.52,6.0377]
[1720999434766,51.7291,148.61,148.52,7.38412046]
[1720999435370,6.7296,148.6,148.52,6.0377]
[1720999435557,45.0,148.59,148.52,6.0377]
[1720999435752,6.7304,148.58,148.52,6.0377]
[1720999435978,45.0,148.59,148.52,6.0377]
[1720999436281,51.73,148.59,148.52,6.0377]
[1720999436779,45.0,148.59,148.52,6.0377]
[1720999437462,6.7308,148.57,148.52,6.0377]
[1720999437681,51.7313,148.56,148.48,13.5216628]
[1720999437881,6.7309,148.57,148.48,13.5216628]
[1720999438059,30.5,148.58,148.48,13.5216628]
[1720999438060,51.7313,148.56,148.48,13.5216628]
[1720999438263,15.27,148.54,148.49,15.27]
[1720999438870,15.27,148.54,148.48,13.5216628]
[1720999438871,15.27,148.53,148.48,28.7916628]
[1720999439181,15.27,148.53,148.48,21.7495]
[1720999440673,15.27,148.53,148.49,15.27]
[1720999440862,15.27,148.53,148.45,7.04645236]
[1720999440863,15.27,148.53,148.46,6.5451]
[1720999441063,15.27,148.52,148.46,6.5451]
[1720999441259,15.27,148.52,148.47,15.27]
[1720999441478,15.27,148.51,148.46,21.8151]
[1720999443174,15.27,148.51,148.46,6.5451]
[1720999443371,15.27,148.5,148.46,21.8151]
[1720999443781,15.27,148.51,148.46,21.8151]
[1720999444086,15.2151,148.56,148.49,15.27]
[1720999444387,15.27,148.53,148.46,6.5451]
[1720999444576,15.27,148.52,148.47,15.27]
[1720999444882,15.27,148.51,148.46,6.5451]
[1720999445096,15.27,148.52,148.47,15.27]
[1720999445272,6.7322,148.54,148.47,15.27]
[1720999445464,15.27,148.52,148.47,15.27]
[1720999445670,45.0,148.53,148.47,15.27]
[1720999445860,15.27,148.52,148.47,15.27]
[1720999446085,15.27,148.5,148.46,6.5451]
[1720999446276,15.27,148.49,148.46,6.5451]
[1720999446682,30.0,148.48,148.46,6.5451]
[1720999446872,30.0,148.48,148.46,21.8151]
[1720999448083,30.0,148.48,148.47,15.27]
[1720999448283,45.0,148.53,148.47,15.27]
[1720999448284,15.27,148.52,148.47,15.27]
[1720999448463,22.0031,148.52,148.46,6.5451]
[1720999448791,15.27,148.5,148.46,6.5451]
[1720999449173,15.27,148.51,148.46,21.8151]
[1720999449896,15.27,148.5,148.46,6.5451]
[1720999450569,6.7331,148.52,148.46,6.5451]
[1720999450789,60.27,148.51,148.46,21.8151]
[1720999450969,15.27,148.51,148.46,21.8151]
[1720999451169,51.7327,148.53,148.46,21.8151]
[1720999451375,15.27,148.51,148.46,21.8151]
[1720999451676,45.0,148.53,148.48,15.27]
[1720999451881,15.27,148.53,148.48,15.27]
[1720999452075,6.7322,148.54,148.48,15.27]
[1720999452271,22.0027,148.53,148.48,15.27]
[1720999452486,15.27,148.52,148.48,15.27]
[1720999453409,2.75695009,148.58,148.48,15.27]
[1720999453572,15.721,148.6,148.5,15.27]
[1720999453573,6.7316,148.56,148.5,15.27]
[1720999453770,15.27,148.54,148.49,15.27]
[1720999453970,15.27,148.53,148.49,15.27]
[1720999454191,6.7322,148.54,148.49,15.27]
[1720999454390,15.27,148.53,148.49,15.27]
[1720999454617,15.27,148.53,148.46,6.5451]
[1720999454770,15.27,148.52,148.46,6.5451]
[1720999454971,15.27,148.52,148.47,15.27]
[1720999455487,15.27,148.5,148.46,6.5451]
[1720999456086,61.08,148.54,148.46,6.5451]
[1720999456087,15.27,148.49,148.46,6.5451]
[1720999456394,15.27,148.5,148.46,6.5451]
[1720999456878,6.7331,148.52,148.46,21.8151]
[1720999457077,15.27,148.5,148.46,21.8151]
[1720999457682,22.0041,148.5,148.46,6.5451]
[1720999457977,30.0,148.48,148.46,6.5451]
[1720999463903,15.27,148.5,148.46,6.5451]
[1720999464096,67.0048,148.49,148.46,6.5451]
[1720999464295,60.27,148.49,148.44,31.3873]
[1720999465002,45.0,148.49,148.44,31.3873]
[1720999465174,60.27,148.49,148.45,15.27]
[1720999465379,6.7331,148.52,148.45,15.27]
[1720999465579,15.27,148.5,148.45,15.27]
[1720999465796,6.7331,148.52,148.47,15.27]
[1720999465978,15.27,148.51,148.47,15.27]
[1720999466179,15.27,148.51,148.45,1.34710561]
[1720999466180,15.27,148.51,148.46,15.27]
[1720999466383,15.27,148.52,148.45,1.34710561]
[1720999466583,15.27,148.52,148.47,15.27]
[1720999466782,30.0,148.48,148.47,15.27]
[1720999467397,30.0,148.48,148.47,21.7667]
[1720999468297,15.27,148.54,148.47,21.7667]
[1720999468485,6.7326,148.53,148.47,6.4967]
[1720999468683,22.0026,148.53,148.48,15.27]
[1720999468884,22.0023,148.54,148.49,15.27]
[1720999469503,16.8277,148.57,148.48,15.27]
[1720999469504,22.0027,148.53,148.48,15.27]
[1720999471797,6.7321,148.55,148.48,15.27]
[1720999472124,16.1627,148.58,148.51,15.27]
[1720999472309,30.0,148.52,148.51,15.27]
[1720999473099,15.27,148.56,148.51,15.27]
[1720999473485,16.1627,148.58,148.51,15.27]
[1720999473682,16.1627,148.58,148.49,1.34687244]
[1720999473683,15.27,148.57,148.52,15.27]
[1720999474000,15.27,148.57,148.49,1.34687244]
[1720999474001,6.103,148.61,148.53,15.27]
[1720999474204,15.27,148.58,148.53,15.27]
[1720999474506,22.0011,148.57,148.52,15.27]
[1720999476007,22.0004,148.58,148.53,15.27]
[1720999476385,6.7299,148.59,148.55,15.27]
[1720999476588,21.9999,148.59,148.54,15.27]
[1720999477090,15.3453,148.62,148.55,15.27]
[1720999477289,15.27,148.59,148.55,15.27]
[1720999477610,22.0,148.59,148.54,15.27]
[1720999478097,6.7296,148.6,148.55,15.27]
[1720999478601,21.9996,148.6,148.55,15.27]
[1720999479187,6.7299,148.59,148.55,15.27]
[1720999479918,9.13485014,148.64,148.56,1.3463209]
[1720999480115,9.13485014,148.64,148.6,15.27]
[1720999480116,2.40715014,148.64,148.6,15.27]
[1720999480416,2.40715014,148.64,148.58,6.25]
[1720999480591,2.40715014,148.64,148.6,15.27]
[1720999480903,2.40715014,148.64,148.58,6.25]
[1720999480904,15.27,148.62,148.58,6.25]
[1720999481104,15.27,148.62,148.58,21.52]
[1720999481421,2.40715014,148.64,148.6,15.27]
[1720999481722,2.40715014,148.64,148.58,6.25]
[1720999481896,15.27,148.63,148.58,6.25]
[1720999482219,9.13485014,148.64,148.59,15.27]
[1720999482513,24.40485014,148.64,148.59,15.27]
[1720999482819,60.27,148.63,148.59,15.27]
[1720999483505,66.9981,148.63,148.58,6.25]
[1720999483703,66.9981,148.63,148.58,21.52]
[1720999484009,15.27,148.61,148.57,15.27]
[1720999484490,51.7281,148.63,148.57,15.27]
[1720999484690,15.27,148.61,148.57,15.27]
[1720999484990,45.0,148.63,148.54,6.2412]
[1720999485205,15.27,148.59,148.54,21.5112]
[1720999485505,15.27,148.58,148.52,15.2763]
[1720999485686,60.27,148.58,148.54,15.27]
[1720999486001,15.27,148.59,148.54,15.27]
[1720999486201,6.7292,148.61,148.52,15.2763]
[1720999486405,45.0,148.6,148.52,15.2763]
[1720999486712,6.7295,148.6,148.52,16.62259126]
[1720999487087,45.0,148.59,148.52,16.62259126]
[1720999487301,45.0,148.59,148.52,15.2763]
[1720999487615,45.0,148.59,148.52,16.62269082]
[1720999490091,45.0,148.59,148.52,15.2763]
[1720999490309,51.73,148.59,148.51,6.1014]
[1720999490508,45.0,148.59,148.51,6.1014]
[1720999490692,6.7299,148.59,148.51,6.1014]
[1720999491006,45.0,148.58,148.51,6.1014]
[1720999492801,45.0,148.58,148.52,1.34653011]
[1720999493115,53.642,148.61,148.52,1.34653011]
[1720999493295,45.0,148.6,148.51,6.1014]
[1720999494022,6.73,148.59,148.51,6.1014]
[1720999494236,51.7305,148.58,148.51,6.1014]
[1720999494521,45.0,148.57,148.51,6.1014]
[1720999494815,51.7309,148.57,148.48,15.1645]
[1720999495596,45.0,148.57,148.49,1.34668832]
[1720999495998,46.9126,148.61,148.49,1.34668832]
[1720999496196,45.0,148.6,148.49,1.34668832]
[1720999496393,45.0,148.6,148.48,15.1645]
[1720999496599,6.7308,148.57,148.48,15.1645]
[1720999496910,45.0,148.56,148.48,15.1645]
[1720999497597,51.7313,148.56,148.48,16.51118223]
[1720999498293,6.7317,148.55,148.48,15.1645]
[1720999498495,45.0,148.54,148.48,15.1645]
[1720999498730,6.7328,148.53,148.47,6.5641]
[1720999499011,51.7331,148.52,148.47,6.5641]
[1720999499410,45.0,148.52,148.47,6.5641]
[1720999500000,51.7332,148.52,148.44,28.97206028]
[1720999500201,45.0,148.52,148.44,28.97206028]
[1720999502310,45.0,148.53,148.44,28.97206028]
[1720999502808,45.0,148.53,148.45,1.34710739]
[1720999503423,45.0,148.53,148.44,28.97206028]
[1720999503620,46.7261,148.55,148.44,28.97206028]
[1720999503621,6.7336,148.51,148.44,28.97206028]
[1720999503829,45.0,148.5,148.44,28.97206028]
[1720999505704,45.0,148.51,148.44,28.97206028]
[1720999505929,45.0,148.51,148.44,13.27986028]
[1720999506223,51.7336,148.51,148.44,6.2323]
[1720999507225,45.0,148.51,148.45,1.34722412]
[1720999507424,6.7331,148.52,148.45,1.34722412]
[1720999507930,6.7325,148.54,148.45,1.34722412]
[1720999508106,6.7326,148.53,148.45,1.34722412]
[1720999508306,15.27,148.51,148.46,15.27]
[1720999508913,15.27,148.52,148.47,15.27]
[1720999509713,22.0031,148.52,148.47,15.27]
[1720999509927,15.27,148.51,148.46,15.27]
[1720999510606,15.27,148.51,148.45,1.34722412]
[1720999510804,15.27,148.51,148.46,15.27]
[1720999511522,15.27,148.5,148.44,6.2323]
[1720999511727,15.27,148.49,148.44,21.5023]
[1720999513317,15.27,148.49,148.45,15.27]
[1720999513513,32.1013,148.54,148.44,6.2323]
[1720999513703,15.27,148.47,148.44,6.2323]
[1720999513905,15.27,148.48,148.44,6.2323]
[1720999514713,15.27,148.48,148.41,6.2971]
[1720999515114,15.27,148.47,148.42,15.27]
[1720999515708,15.27,148.46,148.41,6.2971]
[1720999515931,15.27,148.46,148.41,21.5671]
[1720999517012,22.4648,148.49,148.41,21.5671]
[1720999517337,60.27,148.48,148.43,15.27]
[1720999517647,31.0003,148.49,148.44,15.27]
[1720999517814,15.7303,148.49,148.44,15.27]
[1720999518015,15.27,148.48,148.44,15.27]
[1720999519017,15.27,148.48,148.43,15.27]
[1720999519228,15.27,148.48,148.41,6.2971]
[1720999519529,15.27,148.47,148.43,15.27]
[1720999519733,15.27,148.47,148.41,6.2971]
[1720999519943,6.1751,148.52,148.44,15.27]
[1720999520232,15.27,148.51,148.46,15.27]
[1720999521226,15.27,148.51,148.47,15.27]
[1720999521536,15.27,148.52,148.47,15.27]
[1720999521917,15.27,148.52,148.48,15.27]
[1720999522311,22.5875,148.53,148.48,15.27]
[1720999522516,60.27,148.52,148.48,15.27]
[1720999523534,67.0032,148.52,148.47,15.27]
[1720999523736,67.0032,148.52,148.41,6.2971]
[1720999523737,15.27,148.5,148.41,6.2971]
[1720999523923,15.27,148.51,148.46,15.27]
[1720999524323,45.0,148.52,148.46,15.27]
[1720999524526,15.27,148.51,148.41,6.2971]
[1720999524733,15.27,148.5,148.41,6.2971]
[1720999524936,15.27,148.49,148.44,15.27]
[1720999525537,45.0,148.52,148.41,6.2971]
[1720999525731,15.27,148.46,148.41,21.5671]
[1720999526621,15.27,148.47,148.42,15.27]
[1720999526818,15.27,148.48,148.43,15.27]
[1720999527534,22.0049,148.48,148.41,7.64459981]
[1720999527843,15.27,148.47,148.42,15.27]
[1720999528945,15.27,148.46,148.42,15.27]
[1720999529128,15.27,148.47,148.37,6.0219]
[1720999529330,15.27,148.43,148.38,15.27]
[1720999529533,15.27,148.43,148.37,6.0219]
[1720999529534,15.27,148.41,148.35,7.04980531]
[1720999529725,15.27,148.41,148.36,15.27]
[1720999530626,15.27,148.42,148.37,15.27]
[1720999530827,15.27,148.42,148.38,15.27]
[1720999531948,15.27,148.43,148.38,15.27]
[1720999532246,6.7363,148.45,148.38,21.3395]
[1720999532437,45.0,148.44,148.38,6.0695]
[1720999532634,51.7367,148.44,148.38,6.0695]
[1720999532950,51.7367,148.44,148.35,37.61980531]
[1720999533551,51.7367,148.44,148.35,7.04980531]
[1720999536339,45.0,148.44,148.35,7.04980531]
[1720999536541,6.7386,148.4,148.32,16.5007]
[1720999536854,51.739,148.39,148.32,16.5007]
[1720999537932,45.0,148.39,148.33,1.3483018]
[1720999538337,45.0,148.39,148.32,16.5007]
[1720999538835,6.738,148.42,148.33,1.34817638]
[1720999539035,45.0,148.41,148.33,1.34817638]
[1720999540354,6.7373,148.43,148.34,6.2567]
[1720999540540,6.7373,148.43,148.35,1.34786348]
[1720999540735,6.7379,148.42,148.34,6.2567]
[1720999540954,6.7379,148.42,148.35,1.34785159]
[1720999541156,6.7379,148.42,148.36,1.3478631]
[1720999541359,6.7372,148.43,148.36,1.3478631]
[1720999541552,17.08224817,148.44,148.35,1.34788195]
[1720999542049,6.7379,148.42,148.35,1.34788195]
[1720999542252,45.0,148.41,148.34,7.60466974]
[1720999542435,6.7385,148.41,148.34,6.2567]
[1720999542636,51.7385,148.4,148.34,6.2567]
[1720999543153,17.08224817,148.44,148.34,6.2567]
[1720999543341,17.08224817,148.44,148.35,1.34807158]
[1720999543546,23.81904817,148.44,148.36,1.34770399]
[1720999543856,17.08224817,148.44,148.36,1.34770399]
[1720999544032,17.08224817,148.44,148.34,6.2567]
[1720999544240,6.7352,148.48,148.37,6.2394]
[1720999544449,16.5238,148.5,148.37,6.2394]
[1720999544843,6.7346,148.49,148.37,6.2394]
[1720999545045,6.7346,148.49,148.38,75.57]
[1720999545255,16.5238,148.5,148.38,30.57]
[1720999545455,6.7352,148.48,148.38,30.57]
[1720999545654,6.7353,148.47,148.38,30.57]
[1720999546356,6.7366,148.45,148.37,6.2394]
[1720999546554,6.7358,148.46,148.38,1.34762396]
[1720999546741,45.0,148.45,148.37,6.2394]
[1720999546940,45.0,148.45,148.38,1.34762111]
[1720999547142,51.7362,148.45,148.37,6.2394]
[1720999548057,6.7368,148.44,148.37,6.2394]
[1720999548261,45.0,148.43,148.37,6.2394]
[1720999548454,45.0,148.45,148.37,6.2394]
[1720999548957,6.7376,148.42,148.37,6.2394]
[1720999549158,45.0,148.41,148.37,6.2394]
[1720999551958,51.7381,148.41,148.37,6.2394]
[1720999552355,6.7386,148.4,148.33,21.7292]
[1720999552543,45.0,148.39,148.33,21.7292]
[1720999556158,45.0,148.4,148.33,21.7292]
[1720999556560,45.0,148.41,148.33,21.7292]
[1720999557357,51.738,148.41,148.33,21.7292]
[1720999557752,6.7385,148.4,148.33,21.7292]
[1720999557951,45.0,148.39,148.33,21.7292]
[1720999558463,51.7385,148.4,148.33,21.7292]
[1720999558863,6.739,148.39,148.29,7.04884682]
[1720999559173,45.0,148.38,148.3,1.34824419]
[1720999560047,45.0,148.39,148.3,1.34824419]